bitfinex-derivatives/quotes_SOLF0:USTF0_20250202
["timestamp","ask_amount","ask_price","bid_price","bid_amount"]
[1738526138388,42.0343304,202.86,202.65,2.9934]
[1738526138882,4.9324,202.82,202.71,4.9347]
[1738526139085,3.0743,202.85,202.68,42.0343304]
[1738526139293,0.03418278,202.79,202.74,0.0316543]
[1738526139584,0.03418278,202.79,202.77,4.9333]
[1738526139785,0.03418278,202.79,202.74,0.0316543]
[1738526140178,0.03418278,202.79,202.49,5.76]
[1738526140381,0.03418278,202.79,202.55,3.7708]
[1738526140592,42.0343304,202.82,202.55,3.7708]
[1738526140789,3.0743,202.85,202.55,3.7708]
[1738526140988,3.0743,202.85,202.67,42.0343304]
[1738526141387,4.9325,202.81,202.72,4.9345]
[1738526141689,0.03167657,202.78,202.71,42.0343304]
[1738526142093,3.0743,202.85,202.68,3.7708]
[1738526142588,3.0743,202.85,202.68,3.0582]
[1738526142889,0.03413784,202.79,202.68,3.0582]
[1738526143290,0.03413784,202.79,202.69,6.316]
[1738526143990,0.03413784,202.79,202.7,42.0343304]
[1738526145787,0.03413784,202.79,202.69,6.316]
[1738526146187,42.0343304,202.78,202.54,42.0343304]
[1738526146395,2.9725,202.77,202.61,4.937]
[1738526146594,2.9725,202.77,202.58,42.0343304]
[1738526146893,0.03177402,202.71,202.64,4.9365]
[1738526147089,0.03177402,202.71,202.66,42.0343304]
[1738526147290,0.03177402,202.71,202.67,11.1677]
[1738526147490,2.9725,202.85,202.67,6.2319]
[1738526147695,0.03213859,202.71,202.67,6.2319]
[1738526147994,4.9337,202.76,202.67,11.1676]
[1738526148191,2.9725,202.85,202.67,6.2319]
[1738526148390,0.03317416,202.71,202.67,6.2319]
[1738526148688,0.03739008,202.71,202.68,4.9355]
[1738526148895,2.9725,202.85,202.67,6.2319]
[1738526150196,0.03565734,202.78,202.74,0.03472969]
[1738526150499,4.9354,202.69,202.67,6.2319]
[1738526151096,4.9354,202.69,202.62,4.9369]
[1738526151692,0.03462862,202.68,202.62,4.9369]
[1738526152094,0.03462862,202.68,202.64,4.9363]
[1738526152297,0.03462862,202.68,202.55,3.6937]
[1738526152496,42.0343304,202.78,202.55,3.6937]
[1738526152802,0.0373019,202.64,202.62,42.0343304]
[1738526153099,4.9337,202.76,202.68,4.9353]
[1738526153504,42.0343304,202.82,202.62,42.0343304]
[1738526153898,4.9331,202.79,202.55,3.6937]
[1738526154196,0.0356638,202.74,202.7,0.03698257]
[1738526154592,6.80745227,202.83,202.7,42.0343304]
[1738526154794,6.80745227,202.83,202.7,42.07049448]
[1738526154991,4.934,202.75,202.68,4.9355]
[1738526155200,6.80745227,202.83,202.66,42.0343304]
[1738526155397,6.80745227,202.83,202.7,42.0343304]
[1738526155597,6.80745227,202.88,202.82,4.9319]
[1738526156195,6.80745227,202.88,202.85,4.9313]
[1738526156196,0.03429526,202.87,202.85,4.9313]
[1738526156403,6.80745227,202.88,202.83,0.03280401]
[1738526156703,7.53964581,202.89,202.87,4.9308]
[1738526156899,39.0418306,202.91,202.86,42.0343304]
[1738526157099,23.7732306,202.91,202.9,42.0343304]
[1738526157404,80.39484852,202.92,202.9,42.0343304]
[1738526157405,47.28253752,202.92,202.9,42.0343304]
[1738526157799,0.03354502,202.93,202.9,42.0343304]
[1738526158402,0.03354502,202.93,202.89,0.03207422]
[1738526159805,4.9301,202.91,202.89,0.03207422]
[1738526160698,4.9307,202.88,202.76,42.0343304]
[1738526160899,42.0343304,202.91,202.72,139.6743304]
[1738526161203,4.9322,202.82,202.72,139.6743304]
[1738526161604,42.0343304,202.91,202.72,139.6743304]
[1738526162002,0.03411008,202.79,202.75,0.03546599]
[1738526162201,42.0343304,202.83,202.62,42.0343304]
[1738526162499,4.9347,202.72,202.62,42.0343304]
[1738526162699,0.03520733,202.79,202.75,7.053e-05]
[1738526162900,42.0343304,202.76,202.58,42.0343304]
[1738526163101,4.9359,202.67,202.58,42.0343304]
[1738526163300,2.9993,202.75,202.58,42.0343304]
[1738526163501,5.9875,202.78,202.62,42.0343304]
[1738526164201,0.03249152,202.72,202.7,46.9693304]
[1738526164401,42.0343304,202.87,202.7,42.0343304]
[1738526164600,3.0524,202.86,202.7,42.0343304]
[1738526165599,0.03595156,202.8,202.76,0.03219265]
[1738526166002,0.03595156,202.8,202.78,42.0343304]
[1738526167013,6.1832,202.98,202.78,42.0343304]
[1738526167205,6.1832,202.98,202.86,42.0343304]
[1738526167401,6.1832,202.98,202.82,42.0343304]
[1738526167606,3.1308,202.98,202.82,42.0343304]
[1738526167809,5.8517,203.04,202.87,42.0343304]
[1738526168010,4.9296,202.93,202.83,42.0343304]
[1738526168213,0.03251231,202.88,202.83,0.03508961]
[1738526168708,42.0343304,202.98,202.79,42.0343304]
[1738526168910,0.03680995,202.88,202.83,0.03516901]
[1738526169105,0.03680995,202.88,202.71,42.0343304]
[1738526169310,42.0343304,202.86,202.67,46.9699304]
[1738526169515,42.0343304,202.86,202.67,42.0343304]
[1738526169902,4.9333,202.78,202.67,42.0343304]
[1738526170400,0.0343103,202.75,202.7,0.0360254]
[1738526170809,42.0343304,202.82,202.63,42.0343304]
[1738526171008,0.03500458,202.75,202.7,0.03627712]
[1738526171402,42.0343304,202.78,202.59,116.58446663]
[1738526171610,4.9349,202.71,202.7,0.03779368]
[1738526172708,0.03763267,202.73,202.7,0.03779368]
[1738526177303,4.9348,202.72,202.7,0.03779368]
[1738526178411,0.03763267,202.73,202.7,0.03779368]
[1738526179918,0.03763267,202.73,202.71,42.0343304]
[1738526180417,42.0343304,202.94,202.71,42.0343304]
[1738526180615,6.1991,202.93,202.75,42.0343304]
[1738526180814,6.1991,202.93,202.79,42.0343304]
[1738526181017,6.1991,202.93,202.84,4.9316]
[1738526181218,4.9287,202.97,202.83,42.0343304]
[1738526181418,0.03552824,202.91,202.86,0.03234289]
[1738526181613,6.1991,203.01,202.83,42.0343304]
[1738526181814,6.1991,203.01,202.86,0.0354271]
[1738526182122,6.1991,203.01,202.83,42.0343304]
[1738526182317,0.03467068,202.96,202.91,0.03367814]
[1738526187917,0.03467068,202.96,202.93,42.0343304]
[1738526189126,0.03467068,202.96,202.91,0.03367814]
[1738526190026,0.03467068,202.96,202.78,42.0343304]
[1738526190220,6.21867068,202.96,202.78,42.0343304]
[1738526190419,6.184,202.96,202.78,42.0343304]
[1738526190620,3.0524,202.95,202.78,42.0343304]
[1738526190821,4.9304,202.9,202.78,42.0343304]
[1738526191016,3.0524,202.95,202.78,42.0343304]
[1738526191220,0.03568863,202.86,202.82,0.03468264]
[1738526191620,3.0524,202.95,202.82,42.0343304]
[1738526191817,2.412e-05,202.86,202.85,4.9314]
[1738526192016,9.4518,203.05,202.84,84.0686608]
[1738526192218,9.4518,203.05,202.84,42.0343304]
[1738526192519,4.9281,202.99,202.87,4.9307]
[1738526192724,9.4518,203.05,202.84,42.0343304]
[1738526193326,0.03134629,202.97,202.92,0.03179539]
[1738526193723,0.03134629,202.97,202.84,42.0343304]
[1738526194025,9.4518,203.05,202.92,0.03780848]
[1738526194222,0.03224065,202.93,202.92,0.03780848]
[1738526194421,0.03224065,202.93,202.87,4.9307]
[1738526194619,9.4518,203.05,202.9,0.03194163]
[1738526194822,0.03618376,202.92,202.84,42.0343304]
[1738526195022,4.9288,202.96,202.95,0.03779537]
[1738526195226,4.9288,202.96,202.84,42.0343304]
[1738526195427,0.03231097,202.98,202.84,42.0343304]
[1738526195627,3.0498,203.04,202.93,0.03308375]
[1738526196035,3.0498,203.04,202.88,42.0343304]
[1738526196240,0.03481398,203.01,202.96,0.03605527]
[1738526196632,3.0498,203.04,202.96,0.03605527]
[1738526196926,0.03116538,203.01,202.96,0.03605527]
[1738526197328,4.9285,202.97,202.96,0.03605527]
[1738526197728,4.929,202.96,202.89,4.9305]
[1738526198524,3.0498,203.04,202.84,42.0343304]
[1738526198932,0.03607028,202.96,202.92,0.03228609]
[1738526200229,4.9293,202.94,202.92,0.03228609]
[1738526200425,0.03607028,202.96,202.92,0.03228609]
[1738526203831,0.03607028,202.96,202.93,4.9294]
[1738526204037,0.03607028,202.96,202.92,0.03228609]
[1738526204941,0.03607028,202.96,202.93,4.9293]
[1738526205137,0.03607028,202.96,202.92,0.03228609]
[1738526206434,0.03607028,202.96,202.95,4.929]
[1738526207141,4.9257,203.09,203.01,4.9275]
[1738526207340,42.0343304,203.1,202.9,42.0343304]
[1738526207536,12.1878,203.13,202.98,42.0343304]
[1738526207735,4.9254,203.1,203.02,4.9271]
[1738526207931,12.1878,203.13,202.98,42.0343304]
[1738526208134,9.054,203.13,203.02,42.0343304]
[1738526208341,0.03602969,203.08,203.06,42.0343304]
[1738526208538,3.1338,203.18,203.06,42.0343304]
[1738526208734,4.9237,203.17,203.08,4.9256]
[1738526208939,3.1338,203.18,203.06,42.0343304]
[1738526209431,8.0572,203.18,203.06,42.0343304]
[1738526209636,9.054,203.2,203.1,42.0343304]
[1738526209841,0.03365685,203.14,203.1,42.06796687]
[1738526211537,0.03365685,203.14,203.1,0.03363647]
[1738526218543,0.03365685,203.14,203.1,4.95893647]
[1738526219449,0.03365685,203.14,203.11,4.9251]
[1738526219650,3.1308,203.24,203.13,42.0343304]
[1738526220947,0.03231208,203.21,203.16,0.03686788]
[1738526221151,4.9245,203.14,203.05,42.0343304]
[1738526221447,3.1308,203.24,203.05,42.0343304]
[1738526221649,4.9247,203.13,203.06,4.9263]
[1738526221847,3.1308,203.24,203.05,42.0343304]
[1738526222250,4.9242,203.15,203.08,4.9257]
[1738526222452,4.9242,203.15,203.12,0.03517532]
[1738526223150,4.9245,203.14,203.12,0.03517532]
[1738526223351,0.03159755,203.17,203.12,0.03517532]
[1738526223653,4.9247,203.13,203.06,4.9261]
[1738526223849,6.1114,203.16,203.06,4.9261]
[1738526224047,4.9249,203.12,203.06,4.9261]
[1738526224247,6.1114,203.16,203.06,4.9261]
[1738526224649,0.03408665,203.13,203.09,0.03630254]
[1738526225450,0.03408665,203.13,203.1,9.7347263]
[1738526225845,0.03408665,203.13,203.1,0.0805263]
[1738526226047,0.03408665,203.13,202.92,0.0909]
[1738526226249,6.1114,203.16,202.99,42.0343304]
[1738526226445,6.1114,203.16,203.04,4.9267]
[1738526226651,4.9244,203.14,203.03,42.0343304]
[1738526227252,0.03152403,203.11,203.07,4.9259]
[1738526227746,42.0343304,203.3,203.07,42.0343304]
[1738526227947,6.33,203.23,203.16,42.0343304]
[1738526228156,42.0343304,203.39,203.2,42.0343304]
[1738526228348,6.33,203.33,203.23,4.9222]
[1738526228548,4.9206,203.3,203.23,4.9222]
[1738526229048,0.03253134,203.29,203.24,0.03302156]
[1738526230049,0.03253134,203.29,203.13,42.0343304]
[1738526230355,42.0343304,203.31,203.13,42.0343304]
[1738526230655,42.0343304,203.27,203.09,42.0343304]
[1738526230851,4.9234,203.19,203.11,4.9251]
[1738526231060,3.0198,203.26,203.13,42.0343304]
[1738526231350,4.9221,203.24,203.13,42.0343304]
[1738526231547,0.0340397,203.22,203.16,0.03189556]
[1738526231750,0.0340397,203.22,203.13,42.0343304]
[1738526231953,0.0340397,203.22,203.21,42.0343304]
[1738526232148,6.1061,203.32,203.21,42.0343304]
[1738526232655,6.33,203.33,203.21,42.0343304]
[1738526233253,0.03418657,203.29,203.25,0.03396852]
[1738526233556,0.03418657,203.29,203.13,42.0343304]
[1738526233851,6.33,203.33,203.17,42.0343304]
[1738526234449,4.9211,203.28,203.18,4.9232]
[1738526234651,0.03566682,203.27,203.23,0.03153547]
[1738526235656,4.95706682,203.27,203.23,0.03153547]
[1738526235955,0.03566682,203.27,203.23,0.03153547]
[1738526236654,6.1061,203.39,203.25,42.0343304]
[1738526236853,5.975,203.42,203.31,42.0343304]
[1738526237257,4.918,203.41,203.33,4.9196]
[1738526237458,5.975,203.42,203.33,4.9196]
[1738526237653,5.975,203.42,203.31,42.0343304]
[1738526237853,0.03526561,203.4,203.35,0.03774898]
[1738526238049,0.03526561,203.4,203.39,42.0343304]
[1738526238253,4.9155,203.51,203.42,4.9175]
[1738526238453,5.975,203.56,203.4,42.0343304]
[1738526238757,8.8945,203.56,203.4,42.0343304]
[1738526238958,8.8945,203.56,203.44,42.0343304]
[1738526239454,0.03587362,203.52,203.48,0.03183251]
[1738526240059,0.03587362,203.52,203.49,3.57486491]
[1738526240562,0.03587362,203.52,203.48,0.03183251]
[1738526240756,0.03587362,203.52,203.48,42.06616291]
[1738526241152,10.9551,203.64,203.53,4.9149]
[1738526241459,6.0427,203.64,203.55,42.0343304]
[1738526241654,6.0427,203.64,203.51,42.0343304]
[1738526241854,6.0427,203.64,203.22,77.61378087]
[1738526241855,6.0427,203.64,203.47,42.0343304]
[1738526242059,6.0427,203.64,203.51,42.0343304]
[1738526242264,0.03481929,203.58,203.55,42.0343304]
[1738526243454,3.0128,203.68,203.55,42.0343304]
[1738526243653,3.2033,203.7,203.59,42.0343304]
[1738526243854,6.0343,203.72,203.59,42.0343304]
[1738526244267,10.9449,203.72,203.6,3.53831377]
[1738526244562,0.03663623,203.68,203.64,0.03452819]
[1738526246363,4.912,203.66,203.64,0.03452819]
[1738526248066,0.03663623,203.68,203.64,0.03452819]
[1738526248864,0.03663623,203.68,203.67,42.0343304]
[1738526249865,0.03663623,203.68,203.64,0.03452819]
[1738526250464,4.9124,203.66,203.64,0.03452819]
[1738526250767,0.03663623,203.68,203.53,45.1425304]
[1738526250960,3.031,203.67,203.49,42.0343304]
[1738526251165,3.1382,203.66,203.49,42.0343304]
[1738526251967,0.03461587,203.6,203.55,0.03467592]
[1738526252159,4.9145,203.56,203.55,0.03467592]
[1738526252365,0.03461587,203.6,203.55,0.03467592]
[1738526253065,4.9105,203.73,203.65,4.9123]
[1738526253265,6.2532,203.82,203.64,42.0343304]
[1738526253568,42.0343304,203.8,203.6,42.0343304]
[1738526253966,42.0343304,203.8,203.64,42.0343304]
[1738526254165,4.911,203.7,203.68,0.03358565]
[1738526254364,0.0315225,203.72,203.68,0.03358565]
[1738526254760,4.9112,203.69,203.68,0.03358565]
[1738526255164,0.0315225,203.72,203.68,0.03358565]
[1738526255359,4.911,203.7,203.68,0.03358565]
[1738526256369,0.0315225,203.72,203.68,0.03358565]
[1738526256670,4.9422225,203.72,203.68,0.03358565]
[1738526257166,0.0315225,203.72,203.68,42.06791605]
[1738526257362,0.0315225,203.72,203.71,4.9107]
[1738526257567,6.2532,203.82,203.68,42.06791605]
[1738526257966,6.2532,203.82,203.68,42.0343304]
[1738526258170,6.2532,203.82,203.72,42.0343304]
[1738526258371,3.1936,203.82,203.72,42.0343304]
[1738526258571,8.1019,203.82,203.73,4.9101]
[1738526258765,0.03495972,203.79,203.75,0.03704437]
[1738526259768,4.94385972,203.79,203.75,0.03704437]
[1738526260067,0.03495972,203.79,203.75,0.03704437]
[1738526260664,9.802,204.12,203.76,42.0343304]
[1738526260865,12.0886,203.97,203.81,42.0343304]
[1738526261165,12.0886,203.97,203.85,46.9417304]
[1738526261565,12.0886,203.97,203.85,42.0343304]
[1738526261766,0.03110606,203.93,203.85,42.0343304]
[1738526261966,0.03110606,203.93,203.89,0.03485599]
[1738526262571,0.03110606,203.93,203.89,42.06918639]
[1738526263173,0.03110606,203.93,203.91,4.9059]
[1738526263366,0.03110606,203.93,203.89,42.06918639]
[1738526263568,0.03110606,203.93,203.89,0.03485599]
[1738526263768,4.906,203.91,203.89,0.03485599]
[1738526264166,4.9073,203.86,203.79,42.0343304]
[1738526265473,4.9430013,203.85,203.8,0.03172641]
[1738526265672,0.0356013,203.85,203.8,0.03172641]
[1738526266175,0.0356013,203.85,203.83,42.0343304]
[1738526266367,12.1203,203.92,203.83,42.0343304]
[1738526266674,5.8213,203.92,203.83,42.0343304]
[1738526267072,10.727,203.92,203.84,4.9076]
[1738526267274,10.727,203.92,203.83,42.0343304]
[1738526267569,4.9071,203.87,203.83,42.0343304]
[1738526267776,4.9071,203.87,203.85,0.03265278]
[1738526268370,0.03771179,203.9,203.85,0.03265278]
[1738526268576,4.9071,203.86,203.85,0.03265278]
[1738526268778,0.03771179,203.9,203.85,0.03265278]
[1738526269878,0.03771179,203.9,203.86,4.9071]
[1738526270077,0.03771179,203.9,203.87,42.0343304]
[1738526270472,0.03771179,203.9,203.88,4.9066]
[1738526270675,0.03771179,203.9,203.87,42.0343304]
[1738526270976,4.9042,203.99,203.89,4.9063]
[1738526271280,5.8621,204.03,203.87,42.0343304]
[1738526271482,4.9052,203.94,203.88,4.9065]
[1738526271776,5.8621,204.03,203.84,3.143]
[1738526271981,0.03309609,203.93,203.89,0.03370287]
[1738526272186,5.8621,204.03,203.84,4.9075]
[1738526272479,0.0362972,203.93,203.89,9.64e-05]
[1738526272976,42.0343304,203.97,203.79,42.0343304]
[1738526273182,42.0343304,203.97,203.75,42.0343304]
[1738526273877,4.9074,203.85,203.84,0.03629844]
[1738526274074,4.9074,203.85,203.77,4.9093]
[1738526274280,5.8746,203.87,203.77,4.9093]
[1738526274581,0.03120858,203.83,203.79,0.03512722]
[1738526276286,0.03120858,203.83,203.82,4.9081]
[1738526276784,4.9058,203.92,203.86,4.907]
[1738526276979,6.1121,203.96,203.86,42.0343304]
[1738526277287,6.1121,203.96,203.82,42.0343304]
[1738526277482,4.9067,203.88,203.82,42.0343304]
[1738526277883,0.03187439,203.87,203.83,3.57438233]
[1738526278083,4.93877439,203.87,203.83,3.57438233]
[1738526278481,0.03187439,203.87,203.83,3.57438233]
[1738526278679,0.03187439,203.87,203.84,3.54024714]
[1738526279083,4.93877439,203.87,203.84,3.54024714]
[1738526279486,4.93877439,203.87,203.83,0.03413519]
[1738526281382,0.03187439,203.87,203.84,3.56765683]
[1738526281584,0.03187439,203.87,203.86,42.0343304]
[1738526281882,6.1121,203.96,203.86,42.0343304]
[1738526282081,6.1121,203.96,203.86,45.60198723]
[1738526282286,6.1121,203.96,203.87,4.9066]
[1738526282685,6.1121,203.96,203.88,3.56765683]
[1738526282889,4.93685173,203.94,203.9,0.03233268]
[1738526283089,0.03165173,203.94,203.91,3.56765683]
[1738526283892,4.9053,203.93,203.92,3.56765683]
[1738526284093,0.03165173,203.94,203.92,3.56765683]
[1738526284295,6.3701,204.03,203.92,3.56765683]
[1738526284487,6.3701,204.03,203.98,42.0343304]
[1738526284791,6.3701,204.03,203.94,42.0343304]
[1738526285390,0.03107811,204.01,203.96,8.891e-05]
[1738526285590,4.9045,203.97,203.88,4.9065]
[1738526285790,6.3701,204.03,203.88,4.9065]
[1738526286297,4.9053,203.94,203.88,4.9065]
[1738526286591,6.3701,204.03,203.88,4.9065]
[1738526286796,0.03180529,203.93,203.89,0.03139249]
[1738526287094,0.03685287,203.93,203.89,0.03149706]
[1738526287695,4.9058,203.92,203.89,0.03149706]
[1738526287891,0.03685287,203.93,203.89,0.03149706]
[1738526288399,4.906,203.9,203.89,0.03149706]
[1738526289298,4.9064,203.89,203.78,42.0343304]
[1738526289500,3.199,203.92,203.8,4.9084]
[1738526289695,3.199,203.92,203.78,42.0343304]
[1738526289901,42.0343304,204.01,203.82,42.0343304]
[1738526290101,3.199,204.0,203.82,42.0343304]
[1738526290500,0.03493393,203.93,203.89,0.03330285]
[1738526290799,4.9056,203.92,203.89,0.03330285]
[1738526291898,4.9058,203.91,203.89,0.03330285]
[1738526292100,0.03493393,203.93,203.89,0.03330285]
[1738526292295,0.03493393,203.93,203.78,42.0343304]
[1738526292499,0.03493393,203.93,203.79,4.9085]
[1738526292804,42.0343304,203.99,203.79,4.9085]
[1738526293001,4.9053,203.93,203.79,4.9085]
[1738526293204,3.0194,203.92,203.79,4.9085]
[1738526293503,0.03364114,203.88,203.84,4.636e-05]
[1738526293799,4.9072,203.85,203.84,4.636e-05]
[1738526294206,4.94034114,203.88,203.84,4.636e-05]
[1738526294403,0.03364114,203.88,203.85,42.0343304]
[1738526294602,0.03364114,203.88,203.87,4.9068]
[1738526296306,0.03364114,203.88,203.86,4.907]
[1738526296503,0.03364114,203.88,203.85,42.0343304]
[1738526296807,2.9608,203.98,203.85,42.0343304]
[1738526297104,42.0343304,204.13,203.93,42.0343304]
[1738526297308,5.9338,204.12,203.97,42.0343304]
[1738526297499,11.8388,204.12,203.97,42.0343304]
[1738526298003,4.9027,204.04,204.02,4.668e-05]
[1738526298401,11.8388,204.12,203.98,3.52505329]
[1738526298603,4.9035,204.01,203.98,3.52505329]
[1738526299307,4.9035,204.01,203.99,3.52505329]
[1738526299906,4.9039,203.99,203.98,3.52505329]
[1738526300503,0.03211617,204.02,203.87,4.9066]
[1738526300701,0.03211617,204.02,203.83,24.92222262]
[1738526300909,24.92222262,204.04,203.83,24.92222262]
[1738526301306,4.9053,203.93,203.83,24.92222262]
[1738526301702,0.03345502,203.9,203.87,4.9067]
[1738526301909,0.03345502,203.9,203.86,0.036155]
[1738526302404,0.03345502,203.9,203.88,4.9065]
[1738526303210,0.03345502,203.9,203.86,4.942955]
[1738526303711,0.03345502,203.9,203.86,0.036155]
[1738526304013,4.9063,203.89,203.86,0.036155]
[1738526304407,0.03345502,203.9,203.86,0.036155]
[1738526305706,24.92222262,204.08,203.91,4.9056]
[1738526305914,24.92222262,204.08,203.83,24.92222262]
[1738526306111,24.92222262,204.08,203.89,24.92222262]
[1738526306312,4.9048,203.95,203.89,24.92222262]
[1738526306814,0.03278381,203.94,203.91,4.9058]
[1738526307014,4.9044,203.97,203.91,4.9058]
[1738526307410,24.92222262,204.08,203.9,4.94039331]
[1738526307411,0.03323756,203.95,203.9,4.94039331]
[1738526307611,4.9047,203.96,203.9,4.906]
[1738526307806,24.92222262,204.08,203.9,0.03261507]
[1738526308013,24.92222262,204.04,203.83,24.92222262]
[1738526308213,24.92222262,204.04,203.97,0.03226297]
[1738526308413,24.92222262,204.04,203.83,24.92222262]
[1738526309012,24.92222262,204.04,203.89,4.9062]
[1738526309415,30.56222262,204.08,203.83,24.92222262]
[1738526309608,0.03263775,203.99,203.94,4.94021798]
[1738526309814,0.03263775,203.99,203.94,0.03521798]
[1738526310010,0.03263775,203.99,203.88,24.92222262]
[1738526310209,0.03263775,203.99,203.94,0.03733756]
[1738526311009,6.11003775,203.99,203.94,0.03733756]
[1738526311916,6.11003775,203.99,203.87,4.9067]
[1738526312114,2.9557,203.98,203.83,24.92222262]
[1738526312318,4.9043,203.98,203.93,4.9053]
[1738526312518,6.0774,203.99,203.91,24.92222262]
[1738526313218,0.0349569,203.97,203.93,0.03551469]
[1738526313621,0.0349569,203.97,203.94,4.905]
[1738526314013,0.0349569,203.97,203.93,0.03551469]
[1738526314210,4.9395569,203.97,203.93,0.03551469]
[1738526314412,0.0349569,203.97,203.93,0.03551469]
[1738526314916,4.9051,203.94,203.93,0.03551469]
[1738526315316,0.0349569,203.97,203.93,0.03551469]
[1738526315515,4.9048,203.96,203.93,0.03551469]
[1738526315719,0.0349569,203.97,203.93,0.03551469]
[1738526318320,4.9051,203.94,203.93,0.03551469]
[1738526319823,0.0349569,203.97,203.93,0.03551469]
[1738526321323,4.9051,203.94,203.93,0.03551469]
[1738526321918,0.0349569,203.97,203.93,0.03551469]
[1738526322627,4.9048,203.95,203.93,0.03551469]
[1738526323032,0.0349569,203.97,203.93,0.03551469]
[1738526323327,5.8822,204.05,203.95,24.92222262]
[1738526323928,2.9557,204.07,203.99,24.92222262]
[1738526324326,2.9557,204.07,204.0,4.9034]
[1738526324531,0.03638426,204.05,204.01,0.0368075]
[1738526324830,4.9031,204.02,204.01,0.0368075]
[1738526325331,0.03638426,204.05,204.01,0.0368075]
[1738526325535,4.9029,204.03,204.01,0.0368075]
[1738526325829,6.4126,204.04,204.01,0.0368075]
[1738526327731,4.9031,204.03,204.01,0.0368075]
[1738526328231,0.03638426,204.05,204.01,0.0368075]
[1738526328431,0.03638426,204.05,204.03,24.92222262]
[1738526328632,5.8514,204.14,204.03,24.92222262]
[1738526328932,4.9012,204.11,204.06,4.9022]
[1738526329134,5.8514,204.14,204.03,24.92222262]
[1738526329630,4.9018,204.08,204.06,0.03189146]
[1738526329827,0.03764702,204.11,204.06,0.03189146]
[1738526330231,4.9019,204.07,204.06,0.03189146]
[1738526330431,0.03764702,204.11,204.06,0.03189146]
[1738526331334,4.9015,204.09,204.06,0.03189146]
[1738526331535,0.03764702,204.11,204.06,0.03189146]
[1738526331932,4.9013,204.1,204.06,0.03189146]
[1738526332131,0.03764702,204.11,204.06,0.03189146]
[1738526332635,4.9019,204.07,204.06,0.03189146]
[1738526332934,0.03764702,204.11,203.95,24.92222262]
[1738526333234,24.92222262,204.12,203.91,24.92222262]
[1738526333428,24.92222262,204.08,203.89,77.61378087]
[1738526333630,4.905,203.95,203.89,82.52008087]
[1738526333828,3.096,204.07,203.89,77.61378087]
[1738526334128,4.9058,203.91,203.89,77.61378087]
[1738526334335,24.92222262,204.04,203.89,77.61378087]
[1738526334535,0.03559629,204.0,203.96,3.804e-05]
[1738526334727,4.9043,203.97,203.96,3.804e-05]
[1738526336640,0.03644292,203.99,203.75,32.76182262]
[1738526336932,24.92222262,203.94,203.75,27.85232262]
[1738526337139,4.9079,203.83,203.75,27.85232262]
[1738526337434,2.9918,203.93,203.75,27.85232262]
[1738526337639,4.9078,203.83,203.75,27.85232262]
[1738526337828,4.9078,203.83,203.82,0.03629189]
[1738526338033,4.9078,203.83,203.75,27.85232262]
[1738526338230,4.9078,203.83,203.8,0.03496283]
[1738526338536,0.03706318,203.85,203.71,24.92222262]
[1738526338739,2.9244,203.84,203.71,24.92222262]
[1738526338937,2.9918,203.83,203.68,77.61378087]
[1738526339237,2.9918,203.83,203.71,24.92222262]
[1738526339437,4.9092,203.77,203.71,24.92222262]
[1738526339629,4.9092,203.77,203.75,0.03472966]
[1738526340330,0.03293506,203.79,203.68,77.61378087]
[1738526340528,4.9109,203.7,203.68,77.61378087]
[1738526340733,4.9109,203.7,203.68,48.69408087]
[1738526341033,4.9109,203.7,203.65,155.31278383]
[1738526341034,33.53402262,203.83,203.65,24.92222262]
[1738526341229,24.92222262,203.79,203.61,24.92222262]
[1738526341531,0.03365373,203.72,203.68,5.528e-05]
[1738526341835,4.9111,203.69,203.68,5.528e-05]
[1738526343433,24.92222262,203.71,203.51,3.0669]
[1738526343638,24.92222262,203.66,203.46,0.66220906]
[1738526343938,4.9145,203.55,203.46,0.66220906]
[1738526344336,4.912,203.66,203.49,24.92222262]
[1738526344539,24.92222262,203.72,203.53,24.92222262]
[1738526344737,75.97527887,203.76,203.57,24.92222262]
[1738526344933,0.03750628,203.6,203.59,4.9133]
[1738526345133,25.48863605,203.8,203.64,0.03405414]
[1738526345437,25.48863605,203.8,203.61,24.92222262]
[1738526345645,4.9117,203.67,203.61,24.92222262]
[1738526345830,25.48863605,203.8,203.61,24.92222262]
[1738526345831,6.1505,203.79,203.61,24.92222262]
[1738526346029,4.9123,203.64,203.58,4.9136]
[1738526346235,24.92222262,203.76,203.57,24.92222262]
[1738526346437,24.95869855,203.72,203.49,24.92222262]
[1738526346629,4.9127,203.63,203.46,41.34539172]
[1738526346830,40.68318266,203.65,203.46,41.34539172]
[1738526347031,3.046,203.64,203.46,41.34539172]
[1738526347232,3.046,203.64,203.48,4.9161]